lending/lending_fUSD_20240410
["ID","MTS","AMOUNT","RATE_DAILY","PERIOD"]
[322072301,1712742643921,-167.6,0.00023044,2]
[322072302,1712742643931,-337.69022767,0.00023239,2]
[322072303,1712742643940,-1762.98932666,0.00023485,2]
[322072304,1712742643951,-608.11545412,0.00023716,2]
[322072305,1712742643960,-224.62727988,0.00024,2]
[322072306,1712742643970,-454.58628101,0.00024,2]
[322072307,1712742643979,-277.70345871,0.00024159,2]
[322072308,1712742643988,-4000.0,0.00024174,2]
[322072309,1712742643997,-157.97017963,0.00024239,2]
[322072310,1712742644006,-518.0,0.00024246,2]
[322072311,1712742644015,-427.29,0.00024658,2]
[322072312,1712742644024,-152.32,0.0002468,2]
[322072313,1712742644033,-1087.32409227,0.00024688,2]
[322072314,1712742644041,-149089.15696195,0.0002469,5]
[322072315,1712742644049,-2223.73711434,0.000248,2]
[322072316,1712742644058,-424.9,0.00024918,2]
[322072317,1712742644067,-2022.81688463,0.00024931,2]
[322072318,1712742644076,-2603.52703539,0.00025,2]
[322072319,1712742644086,-1361.64470333,0.00025,2]
[322072320,1712742644095,-172.88861368,0.00025,2]
[322072321,1712742644104,-301.95977012,0.00025,2]
[322072322,1712742644113,-350.0,0.00025,3]
[322072323,1712742644122,-150.0,0.00025008,2]
[322072324,1712742644131,-1000.0,0.00025059,2]
[322072325,1712742644140,-518.0,0.00025479,2]
[322072326,1712742644149,-360.039692,0.00025953,2]
[322072327,1712742644158,-360.039692,0.00025954,2]
[322072328,1712742644168,-800.0,0.00025973,2]
[322072329,1712742644178,-51873.26166091,0.00026,2]
[322072330,1712742644187,-360.039692,0.00026086,2]
[322072331,1712742644196,-158.14981821,0.00026096,2]
[322072332,1712742644209,-153.7660665,0.00026121,2]
[322072333,1712742644218,-156.92392733,0.00026175,2]
[322072334,1712742644228,-156.92392733,0.00026336,2]
[322072335,1712742644237,-360.039692,0.00026377,2]
[322072336,1712742644246,-402.95723045,0.00026386,2]
[322072337,1712742644256,-156.08416384,0.00026469,2]
[322072338,1712742644265,-1762.98932666,0.00026526,2]
[322072339,1712742644274,-154.99471213,0.00026646,2]
[322072340,1712742644454,-210.28629499,0.00026651,2]
[322072341,1712742644463,-154.4957932,0.00026665,2]
[322072342,1712742644473,-518.0,0.00026712,2]
[322072343,1712742644482,-402.95723045,0.00026726,2]
[322072344,1712742644490,-150.95912378,0.00026746,2]
[322072345,1712742644500,-154.98939764,0.00026837,2]
[322072346,1712742644510,-159.44386895,0.00026847,2]
[322072347,1712742644519,-156.92392733,0.00026889,2]
[322072348,1712742644529,-312.67656806,0.00026924,2]
[322072349,1712742644538,-6924.06841522,0.00026925,2]
[322072350,1712742644548,-325.09551705,0.0002693,2]
[322072351,1712742644557,-800.0,0.00026986,2]
[322072352,1712742644567,-608.11545412,0.00026989,2]
[322072353,1712742644576,-155.0,0.00027,4]
[322072354,1712742644586,-1000.0,0.00027,2]
[322072355,1712742644595,-150.0,0.00027,2]
[322072356,1712742644605,-360.039692,0.00027147,2]
[322072357,1712742644614,-158.22335404,0.00027161,2]
[322072358,1712742644623,-402.95723045,0.00027179,2]
[322072359,1712742644633,-424.9,0.00027182,2]
[322072360,1712742644642,-210.28629499,0.00027226,2]
[322072361,1712742644652,-325.09551705,0.00027289,2]
[322072362,1712742644661,-156.08416384,0.00027364,2]
[322072363,1712742644670,-675.99,0.00027397,2]
[322072364,1712742644680,-5000.0,0.000274,2]
[322072365,1712742644689,-157.18906211,0.00027435,2]
[322072366,1712742644700,-325.09551705,0.00027439,2]
[322072367,1712742644710,-150.0,0.000275,2]
[322072368,1712742644719,-1000.0,0.00027564,2]
[322072369,1712742644728,-360.039692,0.00027579,2]
[322072370,1712742644737,-154.4957932,0.00027592,2]
[322072371,1712742644747,-153.88972214,0.00027601,2]
[322072372,1712742644757,-166.81608173,0.00027603,2]
[322072373,1712742644767,-325.09551705,0.00027676,2]
[322072374,1712742644779,-325.09551705,0.0002781,2]
[322072375,1712742644789,-360.039692,0.00027833,2]
[322072376,1712742644799,-154.98939764,0.00027837,2]
[322072377,1712742644808,-405.0,0.00027854,5]
[322072378,1712742644818,-156.92392733,0.00027854,2]
[322072379,1712742644828,-277.70345871,0.00027875,2]
[322072380,1712742644837,-518.0,0.00027945,2]
[322072381,1712742644847,-150.0,0.00028,2]
[322072382,1712742644856,-200.12474297,0.00028,2]
[322072383,1712742644865,-156.92392733,0.00028022,2]
[322072384,1712742644875,-157.97017963,0.00028034,2]
[322072385,1712742644885,-152.32027783,0.00028094,2]
[322072386,1712742644893,-156.08416384,0.0002822,2]
[322072387,1712742644903,-153.88972214,0.00028222,2]
[322072388,1712742644912,-152.32027783,0.00028238,2]
[322072389,1712742644922,-210.28629499,0.00028242,2]
[322072390,1712742644932,-157.18906211,0.00028256,2]
[322072391,1712742644942,-360.039692,0.00028279,2]
[322072392,1712742644954,-156.92392733,0.00028305,2]
[322072393,1712742644964,-163.4681833,0.00028365,2]
[322072394,1712742644974,-150.95912378,0.00028434,2]
[322072395,1712742644984,-156.92392733,0.00028471,2]
[322072396,1712742644994,-325.09551705,0.00028495,2]
[322072397,1712742645004,-150.0,0.000285,2]
[322072398,1712742645014,-153.88972214,0.00028509,2]
[322072399,1712742645022,-210.28629499,0.0002853,2]
[322072400,1712742645031,-153.7660665,0.00028533,2]
[322072401,1712742645041,-153.7660665,0.00028553,2]
[322072402,1712742645051,-153.7660665,0.00028561,2]
[322072403,1712742645060,-154.98939764,0.00028586,2]
[322072404,1712742645069,-325.09551705,0.00028614,2]
[322072405,1712742645079,-1018.8157,0.00028799,2]
[322072406,1712742645089,-153.7660665,0.00028868,2]
[322072407,1712742645099,-150.95912378,0.00028869,2]
[322072408,1712742645109,-156.08416384,0.00028944,2]
[322072409,1712742645118,-12946.10756927,0.00029,2]
[322072410,1712742645128,-561.46794773,0.00029,2]
[322072411,1712742645137,-150.0,0.00029,2]
[322072412,1712742645146,-196.14,0.00029,2]
[322072413,1712742645156,-196.14,0.00029,2]
[322072414,1712742645165,-196.14,0.00029,2]
[322072415,1712742645175,-196.14,0.00029,2]
[322072416,1712742645185,-196.14,0.00029,2]
[322072417,1712742645195,-196.14,0.00029,2]
[322072418,1712742645208,-196.14,0.00029,2]
[322072419,1712742645217,-196.14,0.00029,2]
[322072420,1712742645227,-196.14,0.00029,2]
[322072421,1712742645237,-196.14,0.00029,2]
[322072422,1712742645247,-196.14,0.00029,2]
[322072423,1712742645257,-196.14,0.00029,2]
[322072424,1712742645267,-196.14,0.00029,2]
[322072425,1712742645277,-196.14,0.00029,2]
[322072426,1712742645287,-196.14,0.00029,2]
[322072427,1712742645297,-196.14,0.00029,2]
[322072428,1712742645306,-196.14,0.00029,2]
[322072429,1712742645316,-196.14,0.00029,2]
[322072430,1712742645325,-196.14,0.00029,2]
[322072431,1712742645335,-196.14,0.00029,2]
[322072432,1712742645344,-196.14,0.00029,2]
[322072433,1712742645354,-196.14,0.00029,2]
[322072434,1712742645364,-196.14,0.00029,2]
[322072435,1712742645373,-196.14,0.00029,2]
[322072436,1712742645383,-196.14,0.00029,2]
[322072437,1712742645392,-196.14,0.00029,2]
[322072438,1712742645402,-196.14,0.00029,2]
[322072439,1712742645411,-196.14,0.00029,2]
[322072440,1712742645421,-196.14,0.00029,2]
[322072441,1712742645430,-196.14,0.00029,2]
[322072442,1712742645440,-196.14,0.00029,2]
[322072443,1712742645452,-151.0,0.00029013,2]
[322072444,1712742645461,-152.32027783,0.00029046,2]
[322072445,1712742645471,-153.88972214,0.00029096,2]
[322072446,1712742645480,-153.7660665,0.00029142,2]
[322072447,1712742645489,-518.0,0.00029178,2]
[322072448,1712742645498,-402.95723045,0.00029207,2]
[322072449,1712742645507,-156.92392733,0.00029209,2]
[322072450,1712742645516,-402.95723045,0.00029228,2]
[322072451,1712742645525,-402.95723045,0.00029322,2]
[322072452,1712742645534,-150.0,0.00029323,2]
[322072453,1712742645543,-153.99568917,0.00029355,2]
[322072454,1712742645553,-424.9,0.00029446,2]
[322072455,1712742645562,-150.95912378,0.00029456,2]
[322072456,1712742645571,-800.0,0.00029479,2]
[322072457,1712742645580,-441.77418907,0.000295,3]
[322072458,1712742645590,-150.0,0.000295,2]
[322072459,1712742645599,-210.28629499,0.00029553,2]
[322072460,1712742645608,-1762.98932666,0.00029568,2]
[322072461,1712742645617,-402.95723045,0.00029604,2]
[322072462,1712742645626,-210.28629499,0.00029608,2]
[322072463,1712742645635,-153.88972214,0.00029647,2]
[322072464,1712742645645,-360.039692,0.00029648,2]
[322072465,1712742645654,-325.09551705,0.00029716,2]
[322072466,1712742645664,-153.7660665,0.00029772,2]
[322072467,1712742645673,-150.0,0.00029786,2]
[322072468,1712742645683,-153.7660665,0.00029807,2]
[322072469,1712742645692,-154.98939764,0.00029878,2]
[322072470,1712742645704,-196.14,0.0002998,2]
[322072471,1712742645713,-402.95723045,0.00029986,2]
[322072472,1712742645722,-154.98939764,0.00029988,2]
[322072473,1712742645731,-152.32,0.0002999,2]
[322072474,1712742645741,-196.14,0.0002999,2]
[322072475,1712742645750,-196.14,0.0002999,2]
[322072476,1712742645759,-455.35697942,0.0003,2]
[322072477,1712742645769,-33888.96520615,0.0003,4]
[322072478,1712742645780,-9913.04987373,0.0003,2]
[322072479,1712742645788,-27588.03636947,0.0003,4]
[322072480,1712742645797,-155.85562529,0.0003,4]
[322072481,1712742645806,-695.30880207,0.0003,4]
[322072482,1712742645816,-1023.966369,0.0003,2]
[322072483,1712742645825,-8548.42,0.0003,2]
[322072484,1712742645834,-150.0,0.0003,2]
[322072485,1712742645843,-150.0,0.0003,2]
[322072486,1712742645853,-206.0,0.0003,2]
[322072487,1712742645862,-150.95912378,0.00030037,7]
[322072488,1712742645871,-1000.0,0.0003007,2]
[322072489,1712742645880,-200.0,0.000301,2]
[322072490,1712742645889,-5000.0,0.000301,2]
[322072491,1712742645898,-325.09551705,0.00030104,7]
[322072492,1712742645907,-402.95723045,0.00030156,7]
[322072493,1712742645916,-152.32027783,0.00030194,7]
[322072494,1712742645925,-156.92392733,0.00030231,7]
[322072495,1712742645934,-608.11545412,0.00030262,2]
[322072496,1712742645943,-150.0,0.00030298,2]
[322072497,1712742645954,-150.0,0.00030307,2]
[322072498,1712742645962,-154.98939764,0.0003035,7]
[322072499,1712742645971,-161.80937704,0.00030405,7]
[322072500,1712742645981,-522.0,0.0003041,2]
[322072501,1712742645989,-153.7660665,0.0003042,7]
[322072502,1712742645998,-161.80937704,0.00030443,7]
[322072503,1712742646007,-150.0,0.000305,2]
[322072504,1712742646016,-154.98939764,0.000305,7]
[322072505,1712742646025,-150.0,0.000305,2]
[322072506,1712742646034,-158.14981821,0.00030503,7]
[322072507,1712742646043,-156.08416384,0.0003053,7]
[322072508,1712742646052,-153.88972214,0.00030553,7]
[322072509,1712742646061,-150.0,0.00030599,2]
[322072510,1712742646070,-152.32027783,0.00030604,7]
[322072511,1712742646079,-150.0,0.00030616,2]
[322072512,1712742646088,-1500.0,0.00030621,2]
[322072513,1712742646097,-153.7660665,0.00030623,7]
[322072514,1712742646107,-360.039692,0.00030627,7]
[322072515,1712742646116,-150.0,0.00030632,2]
[322072517,1712742646125,-150.0,0.00030639,2]
[322072518,1712742646134,-150.0,0.00030646,2]
[322072519,1712742646144,-1500.0,0.00030651,2]
[322072520,1712742646153,-150.0,0.00030662,2]
[322072521,1712742646163,-150.0,0.00030673,2]
[322072522,1712742646172,-150.0,0.00030686,2]
[322072525,1712742646182,-210.28629499,0.000307,7]
[322072527,1712742646191,-210.28629499,0.00030701,7]
[322072529,1712742646200,-150.0,0.00030716,2]
[322072530,1712742646210,-150.0,0.00030739,2]
[322072532,1712742646220,-150.0,0.0003074,2]
[322072534,1712742646229,-325.09551705,0.00030744,7]
[322072536,1712742646238,-150.0,0.00030746,2]
[322072538,1712742646248,-150.0,0.00030761,2]
[322072540,1712742646257,-150.0,0.00030779,2]
[322072542,1712742646266,-150.0,0.00030784,2]
[322072544,1712742646276,-615.69723651,0.00030785,2]
[322072546,1712742646285,-150.0,0.00030787,2]
[322072548,1712742646295,-1432.96018572,0.00030797,3]
[322072550,1712742646304,-189.9,0.000308,2]
[322072552,1712742646313,-189.9,0.000308,2]
[322072554,1712742646322,-189.9,0.000308,2]
[322072555,1712742646331,-189.9,0.000308,2]
[322072556,1712742646341,-189.9,0.000308,2]
[322072557,1712742646350,-189.9,0.000308,2]
[322072558,1712742646360,-189.9,0.000308,2]
[322072559,1712742646369,-189.9,0.000308,2]
[322072560,1712742646378,-189.9,0.000308,2]
[322072561,1712742646387,-189.9,0.000308,2]
[322072562,1712742646396,-189.9,0.000308,2]
[322072563,1712742646406,-189.9,0.000308,2]
[322072564,1712742646415,-150.0,0.00030835,2]
[322072565,1712742646424,-150.0,0.00030837,2]
[322072566,1712742646433,-150.0,0.00030851,2]
[322072567,1712742646442,-150.0,0.00030854,2]
[322072568,1712742646451,-150.0,0.00030854,2]
[322072569,1712742646460,-150.0,0.00030875,2]
[322072570,1712742646469,-150.0,0.00030878,2]
[322072571,1712742646478,-150.0,0.00030884,2]
[322072572,1712742646487,-150.0,0.00030896,2]
[322072573,1712742646496,-150.0,0.00030898,2]
[322072574,1712742646505,-150.0,0.00030901,2]
[322072575,1712742646514,-166.75619801,0.00030925,7]
[322072576,1712742646523,-150.0,0.00030938,2]
[322072577,1712742646532,-150.0,0.0003094,2]
[322072578,1712742646541,-150.0,0.00030951,2]
[322072579,1712742646550,-210.28629499,0.00030956,7]
[322072580,1712742646559,-150.0,0.00030957,2]
[322072581,1712742646568,-1020.52106157,0.00030966,2]
[322072582,1712742646577,-1037.45375302,0.00030966,2]
[322072583,1712742646586,-1135.24042425,0.00030966,2]
[322072584,1712742646595,-150.0,0.00030968,2]
[322072585,1712742646605,-196.14,0.0003099,2]
[322072586,1712742646615,-490.69655097,0.00031,4]
[322072587,1712742646624,-1942.47055701,0.00031,60]
[322072588,1712742646633,-150.0,0.00031,2]
[322072589,1712742646642,-150.0,0.00031005,2]
[322072590,1712742646650,-150.0,0.00031011,2]
[322072591,1712742646660,-150.0,0.00031116,2]
[322072592,1712742646670,-300.0,0.00031135,2]
[322072593,1712742646679,-150.95912378,0.0003118,7]
[322072594,1712742646688,-150.0,0.00031195,2]
[322072595,1712742646697,-150.0,0.00031205,2]
[322072596,1712742646708,-150.0,0.00031207,2]
[322072597,1712742646717,-150.0,0.00031212,2]
[322072598,1712742646726,-150.0,0.00031217,2]
[322072599,1712742646735,-154.98939764,0.00031242,7]
[322072600,1712742646745,-150.0,0.00031244,2]
[322072601,1712742646754,-156.92392733,0.00031251,7]
[322072603,1712742646763,-150.0,0.00031252,2]
[322072605,1712742646773,-150.0,0.00031253,2]
[322072607,1712742646784,-150.95912378,0.00031264,7]
[322072608,1712742646794,-150.0,0.00031266,2]
[322072609,1712742646802,-176.57336,0.0003128,2]
[322072610,1712742646811,-150.0,0.00031281,2]
[322072611,1712742646821,-150.0,0.00031289,2]
[322072612,1712742646830,-7348.99136631,0.0003129,2]
[322072613,1712742646839,-189.9,0.000313,2]
[322072614,1712742646849,-189.9,0.000313,2]
[322072615,1712742646858,-189.9,0.000313,2]
[322072616,1712742646868,-189.9,0.000313,2]
[322072617,1712742646877,-189.9,0.000313,2]
[322072618,1712742646886,-189.9,0.000313,2]
[322072619,1712742646895,-189.9,0.000313,2]
[322072620,1712742646904,-189.9,0.000313,2]
[322072621,1712742646913,-189.9,0.000313,2]
[322072622,1712742646923,-189.9,0.000313,2]
[322072623,1712742646932,-189.9,0.000313,2]
[322072624,1712742646942,-189.9,0.000313,2]
[322072625,1712742646952,-189.9,0.000313,2]
[322072626,1712742646962,-189.9,0.000313,2]
[322072627,1712742646972,-189.9,0.000313,2]
[322072628,1712742646981,-189.9,0.000313,2]
[322072629,1712742646989,-189.9,0.000313,2]
[322072630,1712742646999,-189.9,0.000313,2]
[322072631,1712742647008,-189.9,0.000313,2]
[322072632,1712742647017,-189.9,0.000313,2]
[322072633,1712742647026,-189.9,0.000313,2]
[322072634,1712742647035,-189.9,0.000313,2]
[322072635,1712742647045,-189.9,0.000313,2]
[322072636,1712742647054,-189.9,0.000313,2]
[322072637,1712742647064,-150.0,0.000313,2]
[322072638,1712742647073,-150.0,0.0003131,2]
[322072639,1712742647082,-402.95723045,0.00031331,7]
[322072640,1712742647092,-300.0,0.00031334,2]
[322072641,1712742647102,-150.0,0.00031339,2]
[322072642,1712742647112,-150.0,0.00031343,2]
[322072643,1712742647121,-150.0,0.00031345,2]
[322072644,1712742647130,-402.95723045,0.00031377,7]
[322072645,1712742647139,-150.0,0.0003138,2]
[322072646,1712742647149,-309.35570491,0.00031397,10]
[322072647,1712742647158,-150.0,0.00031397,2]
[322072648,1712742647167,-150.0,0.00031398,2]
[322072649,1712742647176,-150.0,0.00031434,2]
[322072650,1712742647185,-210.28629499,0.00031466,7]
[322072651,1712742647194,-150.0,0.00031468,2]
[322072652,1712742647205,-150.0,0.0003148,2]
[322072653,1712742647214,-394.0,0.000315,4]
[322072654,1712742647223,-150.0,0.000315,3]
[322072655,1712742647232,-150.0,0.00031518,2]
[322072656,1712742647241,-156.92392733,0.00031531,7]
[322072657,1712742647251,-150.0,0.00031532,2]
[322072658,1712742647260,-156.92392733,0.00031536,7]
[322072659,1712742647269,-360.039692,0.00031538,7]
[322072660,1712742647279,-150.0,0.00031548,2]
[322072661,1712742647289,-150.0,0.00031556,2]
[322072662,1712742647298,-210.28629499,0.00031559,7]
[322072663,1712742647308,-152.32,0.00031579,2]
[322072664,1712742647317,-196.14,0.00031579,2]
[322072665,1712742647327,-196.14,0.00031579,2]
[322072666,1712742647336,-196.14,0.00031579,2]
[322072667,1712742647346,-196.14,0.00031588,2]
[322072668,1712742647355,-406.16954326,0.00031589,2]
[322072669,1712742647365,-23701.2543032,0.00031589,2]
[322072670,1712742647374,-161.80937704,0.00031589,7]
[322072671,1712742647383,-90053.9217916,0.00031589,2]
[322072672,1712742647394,-5882.02837,0.00031589,2]
[322072673,1712742647403,-277.70345871,0.0003159,2]
[322072674,1712742647413,-150.0,0.00031596,2]
[322072675,1712742647422,-485.17548948,0.00031597,2]
[322072676,1712742647431,-155.0,0.00031598,2]
[322072677,1712742647441,-572.15838706,0.00031598,30]
[322072678,1712742647452,-263.11066074,0.00031598,2]
[322072679,1712742647461,-2967.73802212,0.00031598,4]
[322072680,1712742647471,-13208.26938225,0.00031598,4]
[322072681,1712742647480,-594.70721441,0.00031598,2]
[322072682,1712742647489,-2000.0,0.00031598,4]
[322072683,1712742647498,-2747.84121948,0.00031598,4]
[322072684,1712742647507,-448.62769266,0.00031598,7]
[322072685,1712742647516,-224.37683634,0.00031598,4]
[322072686,1712742647526,-200.0,0.00031598,2]
[322072687,1712742647535,-200.0,0.00031598,2]
[322072688,1712742647544,-200.0,0.00031598,2]
[322072689,1712742647553,-2000.0,0.00031598,2]
[322072690,1712742647562,-200.0,0.00031598,2]
[322072691,1712742647571,-408.22,0.000316,2]
[322072692,1712742647580,-186.56,0.000316,2]
[322072693,1712742647589,-150.0,0.0003161,4]
[322072694,1712742647599,-150.0,0.00031613,2]
[322072695,1712742647608,-300.0,0.00031615,2]
[322072696,1712742647617,-150.0,0.00031629,2]
[322072697,1712742647626,-482.90205505,0.00031639,2]
[322072698,1712742647635,-150.0,0.0003164,2]
[322072699,1712742647644,-522.0,0.00031643,2]
[322072700,1712742647653,-472.93,0.00031644,2]
[322072701,1712742647662,-150.0,0.0003165,2]
[322072702,1712742647671,-166.80797733,0.00031664,7]
[322072703,1712742647680,-360.039692,0.00031665,7]
[322072704,1712742647689,-150.0,0.00031669,2]
[322072705,1712742647698,-210.28629499,0.00031687,7]
[322072706,1712742647711,-150.0,0.00031692,2]
[322072707,1712742647720,-4073.351129,0.00031697,7]
[322072708,1712742647730,-360.408832,0.00031697,7]
[322072709,1712742647739,-156.08416384,0.00031699,7]
[322072710,1712742647748,-1000.16,0.000317,2]
[322072711,1712742647757,-319.6,0.000317,2]
[322072712,1712742647766,-150.0,0.00031702,2]
[322072713,1712742647777,-300.0,0.00031703,2]
[322072714,1712742647786,-150.0,0.00031705,2]
[322072715,1712742647795,-424.9,0.0003171,2]
[322072716,1712742647804,-150.0,0.00031722,2]
[322072717,1712742647813,-402.95723045,0.00031723,7]
[322072718,1712742647823,-156.08416384,0.00031732,7]
[322072719,1712742647833,-196.14,0.00031735,2]
[322072720,1712742647842,-150.0,0.00031742,2]
[322072721,1712742647852,-500.0,0.00031745,4]
[322072722,1712742647861,-500.0,0.00031745,4]
[322072723,1712742647870,-500.0,0.00031745,4]
[322072724,1712742647879,-500.0,0.00031745,4]
[322072725,1712742647888,-500.0,0.00031745,4]
[322072726,1712742647896,-501.0,0.00031745,4]
[322072727,1712742647906,-500.0,0.00031745,4]
[322072728,1712742647915,-500.0,0.00031745,4]
[322072729,1712742647924,-500.0,0.00031745,4]
[322072730,1712742647933,-500.0,0.00031745,4]
[322072731,1712742647943,-500.0,0.00031745,4]
[322072732,1712742647952,-500.0,0.00031745,4]
[322072733,1712742647962,-500.0,0.00031745,4]
[322072734,1712742647971,-500.0,0.00031745,4]
[322072735,1712742647980,-500.0,0.00031745,4]
[322072736,1712742647989,-500.0,0.00031745,4]
[322072737,1712742647998,-500.0,0.00031745,4]
[322072738,1712742648008,-500.0,0.00031745,4]
[322072739,1712742648017,-500.0,0.00031745,4]
[322072740,1712742648026,-500.0,0.00031745,4]
[322072741,1712742648035,-500.0,0.00031745,4]
[322072742,1712742648044,-500.0,0.00031745,4]
[322072743,1712742648053,-500.0,0.00031745,4]
[322072744,1712742648062,-500.0,0.00031745,4]
[322072745,1712742648071,-500.0,0.00031745,4]
[322072746,1712742648080,-500.0,0.00031745,4]
[322072747,1712742648089,-500.0,0.00031745,4]
[322072748,1712742648098,-500.0,0.00031745,4]
[322072749,1712742648108,-500.0,0.00031745,4]
[322072750,1712742648117,-500.0,0.00031745,4]
[322072751,1712742648126,-500.0,0.00031745,4]
[322072752,1712742648136,-500.0,0.00031745,4]
[322072753,1712742648146,-500.0,0.00031745,4]
[322072754,1712742648155,-500.0,0.00031745,4]
[322072755,1712742648164,-500.0,0.00031745,4]
[322072756,1712742648174,-500.0,0.00031745,4]
[322072757,1712742648183,-500.0,0.00031745,4]
[322072758,1712742648192,-500.0,0.00031745,4]
[322072759,1712742648201,-500.0,0.00031745,4]
[322072760,1712742648211,-500.0,0.00031745,4]
[322072761,1712742648219,-500.0,0.00031745,4]
[322072762,1712742648228,-500.0,0.00031745,4]
[322072763,1712742648237,-500.0,0.00031745,4]
[322072764,1712742648247,-500.0,0.00031745,4]
[322072765,1712742648257,-500.0,0.00031745,4]
[322072766,1712742648266,-500.0,0.00031745,4]
[322072767,1712742648276,-500.0,0.00031745,4]
[322072768,1712742648285,-500.0,0.00031745,4]
[322072769,1712742648295,-500.0,0.00031745,4]
[322072770,1712742648304,-500.0,0.00031745,4]
[322072771,1712742648313,-500.0,0.00031745,4]
[322072772,1712742648323,-500.0,0.00031745,4]
[322072773,1712742648332,-500.0,0.00031745,4]
[322072774,1712742648341,-500.0,0.00031745,4]
[322072775,1712742648351,-500.0,0.00031745,4]
[322072776,1712742648508,-500.0,0.00031745,4]
[322072777,1712742648518,-500.0,0.00031745,4]
[322072778,1712742648527,-500.0,0.00031745,4]
[322072779,1712742648536,-500.0,0.00031745,4]
[322072780,1712742648545,-500.0,0.00031745,4]
[322072781,1712742648555,-500.0,0.00031745,4]
[322072782,1712742648564,-500.0,0.00031745,4]
[322072783,1712742648573,-500.0,0.00031745,4]
[322072784,1712742648583,-500.0,0.00031745,4]
[322072785,1712742648592,-500.0,0.00031745,4]
[322072786,1712742648601,-500.0,0.00031745,4]
[322072787,1712742648610,-500.0,0.00031745,4]
[322072788,1712742648619,-499.0,0.00031745,4]
[322072789,1712742648629,-150.0,0.00031763,2]
[322072790,1712742648638,-300.0,0.00031765,2]
[322072791,1712742648647,-150.0,0.00031769,2]
[322072792,1712742648657,-1002.60515025,0.0003177,2]
[322072793,1712742648666,-1000.0,0.0003177,2]
[322072794,1712742648675,-1000.0,0.0003177,2]
[322072795,1712742648684,-1006.38,0.0003177,30]
[322072796,1712742648694,-428.0,0.00031773,30]
[322072797,1712742648706,-643.006234,0.00031776,30]
[322072798,1712742648715,-150.0,0.00031777,2]
[322072799,1712742648724,-980.0,0.00031779,10]
[322072800,1712742648733,-150.0,0.00031787,2]
[322072801,1712742648743,-150.0,0.00031788,2]
[322072802,1712742648752,-150.0,0.00031794,2]
[322072803,1712742648762,-150.0,0.00031797,2]
[322072804,1712742648772,-150.0,0.00031797,2]
[322072805,1712742648783,-200.0,0.00031797,2]
[322072806,1712742648793,-150.0,0.00031797,2]
[322072807,1712742648802,-150.0,0.00031797,3]
[322072808,1712742648811,-338.46972677,0.00031797,2]
[322072809,1712742648821,-221.60263851,0.00031797,2]
[322072810,1712742648830,-1000.8180719,0.00031797,2]
[322072811,1712742648839,-159.39245135,0.00031797,2]
[322072812,1712742648849,-1038.45027465,0.00031797,2]
[322072813,1712742648858,-175.63051501,0.00031797,2]
[322072814,1712742648868,-845.37742432,0.00031797,2]
[322072815,1712742648878,-1015.8203336,0.00031797,2]
[322072816,1712742648887,-185.55472779,0.00031797,2]
[322072817,1712742648896,-478.8395978,0.00031797,2]
[322072818,1712742648905,-643.0,0.00031797,2]
[322072819,1712742648914,-943.2442901,0.00031797,2]
[322072820,1712742648923,-557.13151534,0.00031797,2]